bitfinex-derivatives/quotes_SOLF0:USTF0_20240923
["timestamp","ask_amount","ask_price","bid_price","bid_amount"]
[1727104280540,1.4284,143.02,142.97,3.497]
[1727104281139,3.4962,143.01,142.97,3.497]
[1727104282046,1.3363,143.04,142.92,11.74]
[1727104282047,1.3363,143.04,142.99,11.74]
[1727104282645,4.8317,143.04,143.0,3.4962]
[1727104283038,1.3643,143.05,142.99,11.74]
[1727104283241,3.4953,143.04,142.99,11.74]
[1727104283942,3.4953,143.04,143.0,3.4961]
[1727104284245,4.8595,143.05,143.0,3.4961]
[1727104284742,1.3643,143.05,143.0,3.4961]
[1727104285242,1.3643,143.05,142.97,11.74]
[1727104285446,11.74,143.04,142.95,11.74]
[1727104285638,1.3275,143.03,142.95,11.74]
[1727104285834,3.47940302,143.02,142.93,14.4164]
[1727104286237,3.4962,143.01,142.96,3.4971]
[1727104286741,3.4962,143.01,142.97,3.4968]
[1727104286949,3.4958,143.02,142.95,15.15575966]
[1727104287341,3.4958,143.02,142.97,3.4969]
[1727104288244,3.4961,143.01,142.97,3.4969]
[1727104289046,3.4959,143.02,142.98,3.4967]
[1727104291144,3.4961,143.01,142.98,3.4967]
[1727104291349,1.3275,143.03,142.97,3.4969]
[1727104291644,3.54144365,143.02,142.97,3.4969]
[1727104291848,3.4962,143.01,142.97,3.4969]
[1727104292148,3.54144365,143.02,142.96,3.4971]
[1727104292350,3.54144365,143.02,142.95,11.74]
[1727104292654,3.4963,143.0,142.96,3.4971]
[1727104292944,3.54144365,143.02,142.89,83.94]
[1727104293146,11.74,143.0,142.9,11.74]
[1727104293448,4.89379267,142.99,142.9,11.74]
[1727104294244,3.4974,142.96,142.92,3.4981]
[1727104294640,3.4975,142.95,142.91,3.4984]
[1727104294842,16.63379267,142.99,142.91,3.4984]
[1727104295551,3.4974,142.96,142.91,3.4984]
[1727104296248,3.497,142.97,142.9,11.74]
[1727104296555,4.89379267,142.99,142.92,11.74]
[1727104296947,3.4971,142.97,142.92,11.74]
[1727104297147,4.89379267,142.99,142.92,11.74]
[1727104297347,4.89379267,142.99,142.92,15.2381]
[1727104297548,1.4096,142.99,142.92,11.74]
[1727104297955,1.4096,142.99,142.88,2.7349]
[1727104297956,1.4096,142.99,142.94,11.74]
[1727104298150,1.3918,143.01,142.96,11.74]
[1727104298346,4.8879,143.01,142.97,3.4968]
[1727104298544,4.8879,143.01,142.96,11.74]
[1727104298949,4.8879,143.01,142.97,3.4968]
[1727104299150,4.8879,143.01,142.96,11.74]
[1727104299559,3.4964,143.0,142.97,3.4968]
[1727104300056,3.4964,143.0,142.94,11.74]
[1727104300258,3.4964,143.0,142.96,3.4971]
[1727104300459,1.3918,143.01,142.94,11.74]
[1727104300460,4.888,143.01,142.94,11.74]
[1727104300958,4.888,143.01,142.97,3.4969]
[1727104301654,4.888,143.01,142.98,3.4968]
[1727104303662,4.888,143.01,142.94,11.74]
[1727104304060,3.4962,143.01,142.96,11.74]
[1727104304260,3.4959,143.02,142.99,3.4965]
[1727104304462,1.3275,143.03,142.98,11.74]
[1727104304761,1.4308,143.04,142.98,11.74]
[1727104305064,1.4308,143.04,142.92,11.74]
[1727104305065,1.4308,143.04,143.0,11.74]
[1727104305264,4.9262,143.04,143.01,3.496]
[1727104306763,1.3292,143.06,143.0,11.74]
[1727104306957,1.4009,143.08,143.0,11.74]
[1727104307263,3.4949,143.06,143.03,3.4955]
[1727104307762,1.4009,143.08,143.02,11.74]
[1727104307954,1.4116,143.09,143.04,11.74]
[1727104308162,1.4322,143.1,143.04,11.74]
[1727104308463,3.4937,143.11,143.06,11.74]
[1727104308659,2.8456,143.14,143.08,11.74]
[1727104309156,3.4934,143.12,143.09,3.494]
[1727104309467,2.8456,143.14,143.08,11.74]
[1727104310061,3.4934,143.12,143.08,11.74]
[1727104310255,14.5856,143.14,143.06,11.74]
[1727104310566,3.4939,143.1,143.07,3.4944]
[1727104310759,14.5856,143.14,143.06,11.74]
[1727104311461,3.4937,143.11,143.08,3.4942]
[1727104311763,3.4941,143.09,143.07,3.4945]
[1727104311958,3.4941,143.09,143.04,11.74]
[1727104312364,3.4941,143.09,143.05,3.4949]
[1727104312866,3.4941,143.09,143.06,3.4948]
[1727104313055,3.46616621,143.12,143.04,11.74]
[1727104313056,3.4943,143.08,143.04,11.74]
[1727104313260,11.74,143.12,143.04,11.74]
[1727104313561,14.5856,143.14,143.05,11.74]
[1727104314067,14.5856,143.14,143.07,3.4944]
[1727104314267,3.4937,143.11,143.07,3.4944]
[1727104315167,3.51639306,143.12,143.06,3.4947]
[1727104315359,14.5856,143.14,143.06,3.4947]
[1727104315758,3.494,143.1,143.06,3.4947]
[1727104316268,11.74,143.12,143.05,3.4949]
[1727104316469,1.4143,143.11,143.02,11.74]
[1727104316967,3.494,143.1,143.04,11.74]
[1727104317165,14.5856,143.14,143.05,11.74]
[1727104317564,3.4937,143.11,143.05,11.74]
[1727104318175,3.4937,143.11,143.07,3.4944]
[1727104318671,14.5856,143.14,143.05,11.74]
[1727104319371,3.4943,143.09,143.06,3.4947]
[1727104319571,3.51604352,143.12,143.03,11.74]
[1727104319774,14.5856,143.14,143.03,11.74]
[1727104320072,3.4942,143.09,143.06,3.4947]
[1727104320766,15.21060305,143.12,143.03,11.74]
[1727104320973,11.74,143.12,143.03,11.74]
[1727104321467,3.4945,143.08,143.05,3.495]
[1727104322672,3.4947,143.07,143.04,3.4952]
[1727104322972,3.50765451,143.12,143.0,11.74]
[1727104323272,3.4952,143.05,143.02,3.4957]
[1727104324975,1.3899,143.07,142.98,11.74]
[1727104325169,11.74,143.05,142.96,95.64]
[1727104325372,3.4964,143.0,142.97,3.4969]
[1727104325572,11.74,143.05,142.97,3.4969]
[1727104325768,11.74,143.05,142.96,95.64]
[1727104325970,3.4959,143.02,142.96,95.64]
[1727104326275,11.74,143.05,142.96,95.64]
[1727104326669,3.4957,143.03,142.99,3.4964]
[1727104326878,3.4957,143.03,142.96,95.64]
[1727104327079,2.6742,143.06,142.98,11.74]
[1727104327369,1.3899,143.07,143.02,11.74]
[1727104327771,3.495,143.06,143.02,15.2356]
[1727104328173,1.3899,143.07,143.02,15.2356]
[1727104328972,1.3899,143.07,143.0,11.74]
[1727104330069,3.4949,143.06,143.03,3.4954]
[1727104330373,1.3899,143.07,143.02,11.74]
[1727104330681,4.8846,143.07,143.04,3.4952]
[1727104333375,3.4948,143.06,143.04,3.4952]
[1727104335480,3.4948,143.06,143.03,3.4954]
[1727104335672,3.4951,143.05,143.03,3.4954]
[1727104336075,1.3899,143.07,143.03,3.4954]
[1727104336276,3.4951,143.05,143.03,3.4954]
[1727104337681,3.4951,143.05,143.02,3.4957]
[1727104337886,13.1299,143.07,142.98,11.74]
[1727104338180,11.74,143.05,142.99,3.4963]
[1727104338380,3.4959,143.02,142.99,3.4963]
[1727104338775,11.74,143.05,142.98,3.4966]
[1727104338980,3.4964,143.0,142.96,11.74]
[1727104339379,3.4964,143.0,142.97,3.4969]
[1727104339776,3.4962,143.01,142.96,11.74]
[1727104340183,3.4962,143.01,142.97,3.4969]
[1727104340476,3.4959,143.02,142.96,11.74]
[1727104340677,3.4959,143.02,142.99,3.4964]
[1727104340884,2.7942,143.04,142.98,11.74]
[1727104341382,3.4957,143.03,143.0,3.4962]
[1727104341983,2.7942,143.04,142.98,11.74]
[1727104341984,6.2896,143.04,143.01,3.4959]
[1727104342379,2.7942,143.04,142.98,11.74]
[1727104342576,3.4956,143.03,143.0,3.4961]
[1727104343384,3.4956,143.03,142.97,3.46719207]
[1727104343385,1.3899,143.07,143.02,11.74]
[1727104343781,3.4944,143.08,143.05,3.495]
[1727104343981,101.61844889,143.11,143.04,11.74]
[1727104344886,3.4943,143.08,143.05,3.4949]
[1727104345387,3.4941,143.09,143.06,3.4947]
[1727104345583,98.08529277,143.11,143.04,11.74]
[1727104346189,3.4943,143.09,143.04,11.74]
[1727104347392,3.4943,143.09,143.05,3.4949]
[1727104348588,3.4943,143.09,143.06,3.4948]
[1727104348891,3.4943,143.09,143.04,11.74]
[1727104349093,3.4943,143.09,143.05,3.495]
[1727104349695,3.4943,143.08,143.05,3.495]
[1727104350295,98.08529277,143.11,143.04,11.74]
[1727104351293,11.74,143.1,143.0,11.74]
[1727104351890,3.4948,143.06,143.03,3.4953]
[1727104352695,3.4948,143.06,143.02,3.4956]
[1727104353001,3.4951,143.05,143.02,3.4956]
[1727104353204,11.74,143.1,143.02,3.4956]
[1727104353498,3.4949,143.06,143.03,3.4955]
[1727104353903,3.4949,143.06,143.0,11.74]
[1727104354606,98.08529277,143.11,143.02,11.74]
[1727104355004,3.4941,143.09,143.05,3.4949]
[1727104355199,98.08529277,143.11,143.04,11.74]
[1727104355399,4.8415,143.11,143.07,3.4944]
[1727104355595,192.0476,143.13,143.08,11.74]
[1727104356905,3.4935,143.12,143.09,3.4941]
[1727104357107,192.0476,143.13,143.09,3.4941]
[1727104357415,3.4934,143.12,143.09,3.4941]
[1727104359608,3.4936,143.11,143.08,3.4943]
[1727104360306,3.4935,143.12,143.09,3.494]
[1727104363324,192.0476,143.13,143.12,3.4933]
[1727104363798,69.0609,143.13,143.12,3.4933]
[1727104364915,69.0609,143.13,143.11,15.2335]
[1727104365509,69.0609,143.13,143.11,15.2334]
[1727104365711,69.0609,143.13,143.11,11.74]
[1727104366109,69.0609,143.13,143.12,3.4933]
[1727104366417,69.0609,143.13,143.1,11.74]
[1727104367510,69.0609,143.13,143.08,11.74]
[1727104368009,3.4936,143.11,143.08,11.74]
[1727104368613,3.4934,143.12,143.08,15.2343]
[1727104370011,69.0609,143.13,143.09,3.4939]
[1727104370513,69.0609,143.13,143.08,11.74]
[1727104370716,72.5542,143.13,143.08,15.2342]
[1727104372013,3.4933,143.13,143.08,15.2342]
[1727104372216,3.493,143.14,143.08,11.74]
[1727104372416,1.4655,143.15,143.08,11.74]
[1727104372816,3.4931,143.14,143.1,3.4937]
[1727104373016,1.4655,143.15,143.08,11.74]
[1727104373412,3.4933,143.13,143.08,11.74]
[1727104373916,1.4655,143.15,143.08,11.74]
[1727104374515,3.4931,143.13,143.09,3.4941]
[1727104375016,3.4934,143.12,143.09,3.4941]
[1727104375521,3.4932,143.13,143.09,3.4941]
[1727104376612,3.4932,143.13,143.1,3.4938]
[1727104376920,3.493,143.14,143.1,11.74]
[1727104377123,1.4655,143.15,143.1,11.74]
[1727104377308,3.493,143.14,143.1,15.2337]
[1727104377621,1.4655,143.15,143.1,15.2337]
[1727104377810,3.493,143.14,143.1,15.2337]
[1727104378013,3.493,143.14,143.11,3.4936]
[1727104378918,1.4655,143.15,143.12,11.74]
[1727104379316,1.355,143.17,143.12,11.74]
[1727104379523,3.4925,143.16,143.13,3.4929]
[1727104379720,1.355,143.17,143.12,11.74]
[1727104380020,1.4623,143.19,143.13,11.74]
[1727104380922,3.4925,143.16,143.13,11.74]
[1727104381518,3.4922,143.17,143.14,3.4927]
[1727104382219,3.4924,143.16,143.13,15.233]
[1727104382520,1.4623,143.19,143.11,11.74]
[1727104382724,3.4928,143.15,143.12,3.4932]
[1727104383724,3.4931,143.14,143.11,11.74]
[1727104383922,1.4623,143.19,143.11,11.74]
[1727104384125,3.4928,143.15,143.11,11.74]
[1727104384315,3.4928,143.15,143.12,3.4933]
[1727104384931,3.4922,143.17,143.13,3.4929]
[1727104385124,1.4623,143.19,143.09,11.74]
[1727104385324,11.74,143.18,143.09,11.74]
[1727104386129,1.4623,143.19,143.05,69.83260643]
[1727104386130,3.4927,143.15,143.12,3.4933]
[1727104386424,1.4623,143.19,143.11,11.74]
[1727104386728,3.4925,143.16,143.11,11.74]
[1727104387229,1.4623,143.19,143.11,11.74]
[1727104387429,3.4922,143.17,143.13,3.493]
[1727104387628,1.4623,143.19,143.13,11.74]
[1727104388129,3.4921,143.17,143.14,3.4927]
[1727104388323,1.4623,143.19,143.13,11.74]
[1727104388928,3.4922,143.17,143.13,11.74]
[1727104389424,11.74,143.18,143.05,69.83260643]
[1727104389630,11.74,143.18,143.09,11.74]
[1727104390232,3.493,143.14,143.09,11.74]
[1727104390536,1.4623,143.19,143.05,69.83260643]
[1727104390537,11.74,143.16,143.07,11.74]
[1727104390830,2.7725,143.15,143.07,11.74]
[1727104391231,2.7725,143.15,143.09,15.2339]
[1727104391232,3.4932,143.13,143.09,15.2339]
[1727104391621,2.7725,143.15,143.09,11.74]
[1727104392627,6.2651,143.15,143.11,3.4934]
[1727104393121,2.7725,143.15,143.11,3.4934]
[1727104393527,6.2652,143.15,143.11,3.4934]
[1727104394235,3.4929,143.14,143.11,3.4934]
[1727104394735,3.4929,143.14,143.1,3.4937]
[1727104396231,3.4931,143.13,143.09,15.234]
[1727104396437,2.7725,143.15,143.07,11.74]
[1727104396833,3.4934,143.12,143.07,11.74]
[1727104397030,2.7725,143.15,143.07,11.74]
[1727104397430,3.4932,143.13,143.09,3.494]
[1727104398636,2.7725,143.15,143.1,11.74]
[1727104398837,1.3899,143.15,143.1,11.74]
[1727104399039,1.3899,143.15,143.12,15.2332]
[1727104399246,2.8172,143.19,143.12,11.74]
[1727104399437,4.2444,143.19,143.12,11.74]
[1727104399636,3.4923,143.17,143.13,3.493]
[1727104400535,3.492,143.18,143.14,3.4927]
[1727104400843,4.2444,143.19,143.14,3.4927]
[1727104401039,3.492,143.18,143.14,3.4927]
[1727104401238,3.492,143.18,143.15,3.4925]
[1727104401633,3.492,143.18,143.14,11.74]
[1727104402039,96.6604183,143.22,143.16,11.74]
[1727104402834,99.4305183,143.22,143.17,3.492]
[1727104403234,3.4916,143.2,143.18,3.4919]
[1727104404035,99.4305183,143.22,143.18,3.4919]
[1727104404335,99.4305183,143.22,143.16,11.74]
[1727104404537,2.7701,143.22,143.18,11.74]
[1727104404738,2.8144,143.26,143.2,11.74]
[1727104404935,2.8144,143.26,143.21,3.491]
[1727104405132,2.8144,143.26,143.2,11.74]
[1727104405336,2.8144,143.26,143.22,11.74]
[1727104405536,2.8144,143.26,143.23,3.4905]
[1727104405936,6.3045,143.26,143.23,3.4905]
[1727104406137,6.3045,143.26,143.22,11.74]
[1727104406337,2.8144,143.26,143.2,18.76]
[1727104406739,2.8144,143.26,143.23,3.4906]
[1727104407139,3.4899,143.27,143.23,3.4906]
[1727104407537,4.9407,143.28,143.24,3.4904]
[1727104407934,2.7952,143.31,143.22,18.76]
[1727104408134,2.7952,143.31,143.22,22.28748096]
[1727104408539,2.7952,143.31,143.24,3.4904]
[1727104408742,3.4898,143.27,143.22,3.52748096]
[1727104408944,3.4898,143.27,143.2,18.76]
[1727104409740,3.4898,143.27,143.22,3.4907]
[1727104410342,3.4895,143.28,143.23,3.4906]
[1727104410548,3.4895,143.28,143.23,6.99573304]
[1727104410748,3.4895,143.28,143.23,3.4906]
[1727104410939,3.4895,143.28,143.24,3.4904]
[1727104412941,2.7952,143.31,143.23,3.52768294]
[1727104413144,2.7952,143.31,143.22,18.76]
[1727104413745,3.4891,143.3,143.26,3.4899]
[1727104413948,2.7952,143.31,143.26,3.4899]
[1727104414144,3.4891,143.3,143.27,3.4897]
[1727104414747,3.5692739,143.37,143.28,18.76]
[1727104414946,2.78,143.35,143.28,18.76]
[1727104415145,2.78,143.35,143.31,3.4886]
[1727104415348,2.78,143.35,143.29,3.45552297]
[1727104416256,118.97228939,143.41,143.33,3.4882]
[1727104416257,3.4875,143.37,143.33,3.4882]
[1727104416663,4.2342,143.4,143.33,3.4882]
[1727104416859,4.2342,143.4,143.34,3.4879]
[1727104417365,4.2342,143.4,143.32,18.76]
[1727104418167,3.4868,143.39,143.36,3.4873]
[1727104418665,3.4868,143.39,143.35,3.4876]
[1727104419062,3.487,143.38,143.35,3.4876]
[1727104419561,7.7208,143.4,143.32,22.26732543]
[1727104419766,4.2342,143.4,143.32,22.26732543]
[1727104420065,3.4873,143.37,143.34,3.4878]
[1727104420961,3.4871,143.38,143.35,3.4877]
[1727104421559,7.7208,143.4,143.37,3.4872]
[1727104421764,3.49441674,143.43,143.32,22.26732543]
[1727104421964,18.76,143.46,143.35,18.76]
[1727104422264,22.22486637,143.46,143.35,18.76]
[1727104422963,3.4864,143.41,143.38,3.4868]
[1727104423166,22.22486637,143.46,143.38,3.4868]
[1727104423460,3.4866,143.4,143.37,3.4871]
[1727104423665,3.46486637,143.46,143.35,18.76]
[1727104423867,4.1922,143.47,143.35,18.76]
[1727104424166,4.1922,143.47,143.37,18.76]
[1727104424366,3.4853,143.45,143.39,18.76]
[1727104424869,3.4853,143.45,143.41,3.4861]
[1727104425258,3.4853,143.45,143.39,18.76]
[1727104425459,3.4853,143.45,143.41,3.4861]
[1727104425666,3.4853,143.45,143.39,18.76]
[1727104425872,4.1922,143.47,143.39,18.76]
[1727104426169,4.1922,143.47,143.37,18.76]
[1727104426557,3.4856,143.44,143.37,18.76]
[1727104426961,3.4856,143.44,143.4,3.4865]
[1727104427362,3.4854,143.45,143.4,3.4865]
[1727104427577,4.1922,143.47,143.37,18.76]
[1727104427760,2.7916,143.47,143.39,18.76]
[1727104428167,3.4855,143.45,143.41,3.4861]
[1727104428561,2.7916,143.47,143.41,11.71]
[1727104428773,2.7916,143.47,143.41,15.24734588]
[1727104428964,2.7916,143.47,143.41,11.71]
[1727104429367,2.7916,143.47,143.4,3.4864]
[1727104429568,2.7916,143.47,143.39,11.71]
[1727104429967,2.7916,143.47,143.41,11.71]
[1727104430173,2.7916,143.47,143.41,15.27105838]
[1727104430764,3.4849,143.47,143.44,3.4855]
[1727104431075,11.71,143.51,143.43,11.71]
[1727104431261,3.4852,143.46,143.43,3.4856]
[1727104432273,3.4853,143.45,143.42,3.486]
[1727104432671,11.71,143.49,143.42,3.486]
[1727104432970,3.4853,143.46,143.42,3.486]
[1727104433171,11.71,143.49,143.42,3.486]
[1727104433770,3.43828933,143.48,143.41,15.1961]
[1727104434470,11.71,143.47,143.4,3.4865]
[1727104434668,7.67092343,143.46,143.37,11.71]
[1727104434875,11.71,143.45,143.37,11.71]
[1727104435678,3.4859,143.43,143.4,3.4864]
[1727104436479,7.59108483,143.46,143.37,11.71]
[1727104436480,3.4862,143.42,143.37,11.71]
[1727104436870,7.59108483,143.46,143.38,3.4869]
[1727104437274,7.59108483,143.46,143.37,11.71]
[1727104437473,11.71,143.45,143.37,15.1971]
[1727104437668,7.59108483,143.46,143.37,11.71]
[1727104437875,7.59108483,143.46,143.39,15.1966]
[1727104438079,3.486,143.43,143.39,15.1966]
[1727104438276,7.59108483,143.46,143.39,15.1966]
[1727104438680,4.1901,143.46,143.39,11.71]
[1727104439783,3.4859,143.43,143.4,3.4864]
[1727104440281,3.4857,143.44,143.41,3.4861]
[1727104440478,3.4857,143.44,143.39,11.71]
[1727104440877,3.4854,143.45,143.42,3.486]
[1727104441076,4.1901,143.46,143.41,11.71]
[1727104441285,2.7886,143.46,143.44,3.4856]
[1727104442281,1.4544,143.51,143.44,3.4856]
[1727104442479,2.7078,143.5,143.44,3.4856]
[1727104442783,14.4178,143.5,143.41,11.71]
[1727104443374,3.4854,143.45,143.42,3.4859]
[1727104443876,3.4854,143.45,143.41,11.71]
[1727104444077,14.4178,143.5,143.41,11.71]
[1727104444891,3.4855,143.45,143.42,3.4859]
[1727104445386,3.4855,143.45,143.43,3.4857]
[1727104445573,3.4856,143.44,143.41,11.71]
[1727104446082,3.4856,143.44,143.41,15.1962]
[1727104446381,3.486,143.43,143.41,11.71]
[1727104447585,3.486,143.43,143.4,3.4864]
[1727104448677,3.4861,143.42,143.39,15.1967]
[1727104449379,3.4859,143.43,143.4,3.4865]
[1727104450077,3.4857,143.44,143.4,3.4865]
[1727104450278,3.4857,143.44,143.33,83.68]
[1727104450279,3.4857,143.44,143.41,15.1962]
[1727104451782,3.4857,143.44,143.41,11.71]
[1727104451986,11.71,143.47,143.38,11.71]
[1727104452286,11.71,143.47,143.39,3.4866]
[1727104452484,3.4861,143.42,143.39,3.4866]
[1727104452880,3.4861,143.42,143.39,3.4867]
[1727104454494,3.4614337,143.46,143.38,11.71]
[1727104454792,11.71,143.43,143.34,11.71]
[1727104454986,2.8743,143.42,143.36,11.71]
[1727104455290,2.8743,143.42,143.38,11.71]
[1727104455678,6.3604,143.42,143.39,3.4867]
[1727104456890,3.4863,143.41,143.39,3.4867]
[1727104458595,2.8743,143.42,143.36,11.71]
[1727104458894,3.4864,143.41,143.38,3.4868]
[1727104460390,2.8743,143.42,143.38,3.4868]
[1727104460391,6.3605,143.42,143.38,3.4868]
[1727104460988,2.8743,143.42,143.37,3.4871]
[1727104462393,3.4864,143.41,143.37,3.4871]
[1727104462692,3.4864,143.41,143.38,3.487]
[1727104463591,1.3401,143.45,143.4,11.71]
[1727104464492,3.4855,143.45,143.41,3.4862]
[1727104464685,2.8869,143.47,143.4,11.71]
[1727104464994,6.3719,143.47,143.44,3.4855]
[1727104465493,2.8869,143.47,143.42,11.71]
[1727104466493,3.4852,143.46,143.43,3.4858]
[1727104472199,3.4854,143.45,143.42,15.1959]
[1727104472397,3.4854,143.45,143.43,7.5]
[1727104472603,7.5,143.49,143.44,7.5]
[1727104473001,7.5,143.48,143.43,7.5]
[1727104473200,3.4853,143.45,143.43,7.5]
[1727104473401,7.5,143.46,143.35,83.7]
[1727104473604,7.5,143.46,143.41,7.5]
[1727104473996,3.4857,143.44,143.41,10.9862]
[1727104474902,3.4857,143.44,143.42,10.986]
[1727104477003,3.4855,143.45,143.42,10.986]
[1727104477204,7.5,143.47,143.43,7.5]
[1727104477398,7.5,143.47,143.42,3.486]
[1727104477602,3.4857,143.44,143.42,7.5]
[1727104478303,3.4857,143.44,143.42,10.986]
[1727104479606,3.4854,143.45,143.42,10.986]
[1727104482004,3.4854,143.45,143.43,3.4858]
[1727104482199,7.5,143.47,143.43,3.4858]
[1727104482405,7.5,143.48,143.43,10.9858]
[1727104482703,7.5,143.48,143.43,7.5]
[1727104482903,3.4851,143.46,143.43,7.5]
[1727104483104,3.4851,143.46,143.44,3.4854]
[1727104488208,3.4851,143.46,143.43,10.9857]
[1727104488915,3.4853,143.45,143.43,10.9857]
[1727104492305,3.4853,143.45,143.44,7.5]
[1727104492706,3.4852,143.46,143.44,10.9856]
[1727104493925,3.4853,143.46,143.44,7.5]
[1727104494120,7.5,143.48,143.43,7.5]
[1727104494831,7.5,143.48,143.43,10.9856]
[1727104496139,3.4853,143.45,143.43,3.4856]
[1727104496342,3.4853,143.45,143.43,10.9856]
[1727104497035,10.95526187,143.47,143.41,7.5]
[1727104497244,7.5,143.46,143.41,7.5]
[1727104497936,7.5,143.46,143.41,10.9863]
[1727104499144,3.4857,143.44,143.41,10.9863]
[1727104499535,3.4859,143.43,143.4,10.9864]
[1727104499936,7.5,143.44,143.4,7.5]
[1727104500137,3.4862,143.42,143.4,7.5]
[1727104500333,7.5,143.44,143.4,7.5]
[1727104500541,1.4291,143.45,143.42,7.5]
[1727104500841,3.4857,143.44,143.42,7.5]
[1727104501135,8.9291,143.45,143.4,7.5]
[1727104501334,3.4859,143.43,143.4,10.9864]
[1727104501529,1.4291,143.45,143.42,7.5]
[1727104501937,3.4858,143.44,143.41,10.9862]
[1727104502237,8.9291,143.45,143.41,7.5]
[1727104502439,3.4858,143.43,143.41,7.5]
[1727104503235,3.4858,143.43,143.41,10.9863]
[1727104503744,3.4857,143.44,143.41,10.9863]
[1727104505036,3.4857,143.44,143.42,7.5]
[1727104505250,8.8605,143.49,143.43,7.5]
[1727104505544,8.8605,143.49,143.45,7.5]
[1727104506339,3.485,143.47,143.45,7.5]
[1727104507135,1.3605,143.49,143.4,3.42679779]
[1727104507342,2.8791,143.5,143.46,7.5]
[1727104507540,10.3791,143.5,143.46,7.5]
[1727104508144,3.4848,143.48,143.46,7.5]
[1727104508542,7.5,143.47,143.35,83.68]
[1727104508745,7.5,143.46,143.41,7.5]
[1727104509043,7.5,143.47,143.43,7.5]
[1727104509340,3.4852,143.46,143.43,7.5]
[1727104509640,3.4852,143.46,143.43,10.9856]
[1727104510642,7.5,143.44,143.34,83.68]
[1727104510845,7.5,143.42,143.37,7.5]
[1727104511147,7.5,143.46,143.41,7.5]
[1727104511347,7.5,143.46,143.42,3.4859]
[1727104511541,7.5,143.47,143.42,7.5]
[1727104511738,3.4852,143.46,143.43,7.5]
[1727104511943,7.5,143.47,143.43,7.5]
[1727104512539,7.5,143.47,143.42,7.5]
[1727104512843,7.5,143.46,143.42,7.5]
[1727104513042,7.5,143.48,143.42,7.5]
[1727104513252,7.5,143.48,143.41,7.5]
[1727104513253,7.5,143.47,143.41,7.5]
[1727104513449,7.5,143.45,143.41,7.5]
[1727104513951,3.4857,143.44,143.41,10.986]
[1727104514347,7.5,143.45,143.4,7.5]
[1727104514548,3.49072356,143.48,143.39,10.9866]
[1727104514549,3.4862,143.42,143.39,10.9866]
[1727104515253,3.4863,143.41,143.39,7.5]
[1727104515445,7.5,143.43,143.39,7.5]
[1727104515950,3.5642045,143.46,143.39,7.5]
[1727104515951,7.5,143.44,143.39,7.5]
[1727104516348,3.4861,143.42,143.39,10.9867]
[1727104516549,3.4861,143.42,143.38,7.5]
[1727104517055,3.4866,143.4,143.37,10.9872]
[1727104517348,7.5,143.41,143.37,10.9872]
[1727104517656,10.9864,143.41,143.37,10.9872]
[1727104518042,10.9864,143.41,143.31,94.15394739]
[1727104518353,7.5,143.4,143.36,7.5]